fUST/lending_fUST_20250826
["ID","MTS","AMOUNT","RATE_DAILY","PERIOD"]
[381385202,1756174250850,-8312.36,0.00041095,3]
[381385203,1756174250860,-480.0,0.00041095,30]
[381385204,1756174250869,-943.31,0.00041095,30]
[381385205,1756174250879,-480.0,0.00041095,30]
[381385206,1756174250889,-5209.1,0.00041095,30]
[381385207,1756174250899,-486.38,0.00041095,30]
[381385208,1756174250908,-550.97,0.00041095,30]
[381385209,1756174250918,-480.0,0.00041095,30]
[381385210,1756174250927,-515.03823139,0.00041095,30]
[381385211,1756174250937,-4203.81,0.00041095,30]
[381385212,1756174250946,-480.0,0.00041095,30]
[381385213,1756174250955,-480.0,0.00041095,30]
[381385214,1756174250966,-921.54,0.00041095,30]
[381385215,1756174250976,-609.48,0.00041095,30]
[381385216,1756174250990,-480.0,0.00041095,2]
[381385217,1756174251004,-1204.87,0.00041095,30]
[381385218,1756174251013,-2842.25,0.00041095,30]
[381385219,1756174251023,-736.93,0.00041095,30]
[381385220,1756174251033,-2363.72,0.00041095,30]
[381385221,1756174251043,-480.0,0.00041095,30]
[381385222,1756174251052,-480.0,0.00041095,30]
[381385223,1756174251062,-151.0,0.00041095,30]
[381385224,1756174251072,-480.0,0.00041095,2]
[381385225,1756174251081,-151.79434548,0.00041095,30]
[381385226,1756174251091,-480.0,0.00041095,30]
[381385227,1756174251100,-879.06,0.00041095,30]
[381385228,1756174251111,-480.0,0.00041095,30]
[381385229,1756174251120,-480.0,0.00041095,30]
[381385230,1756174251130,-660.16,0.00041095,30]
[381385231,1756174251140,-684.49,0.00041095,30]
[381385232,1756174251150,-842.46,0.00041095,30]
[381385233,1756174251159,-480.0,0.00041095,30]
[381385234,1756174251169,-480.0,0.00041095,30]
[381385235,1756174251179,-633.39,0.00041095,30]
[381385236,1756174251188,-9223.21,0.00041095,30]
[381385237,1756174251197,-1533.62,0.00041095,30]
[381385238,1756174251209,-152.30485943,0.00041095,7]
[381385239,1756174251219,-480.0,0.00041095,30]
[381385240,1756174251228,-151.0,0.00041095,7]
[381385241,1756174251238,-480.0,0.00041095,30]
[381385242,1756174251249,-1142.05,0.00041095,30]
[381385243,1756174251258,-151.0,0.00041095,7]
[381385244,1756174251268,-3753.87776674,0.00041095,6]
[381385245,1756174251278,-1017.479525,0.000411,14]
[381385246,1756174251288,-1000.0,0.0004112,14]
[381385247,1756174251300,-1000.0,0.0004114,14]
[381385248,1756174251310,-1000.0,0.0004116,14]
[381385249,1756174251320,-197.80930233,0.00041178,120]
[381385250,1756174251330,-1000.0,0.0004118,14]
[381385251,1756174251340,-2200.0,0.00041186,14]
[381385252,1756174251350,-353.31934,0.000412,120]
[381385253,1756174251360,-1000.0,0.000412,14]
[381385254,1756174251370,-1000.0,0.0004122,14]
[381385255,1756174251380,-1000.0,0.0004124,14]
[381385256,1756174251391,-1000.0,0.0004126,14]
[381385257,1756174251401,-1000.0,0.0004128,14]
[381385258,1756174251411,-1144.28795,0.0004128,14]
[381385259,1756174251420,-1000.0,0.000413,14]
[381385260,1756174251430,-1000.0,0.000413,14]
[381385261,1756174251439,-207.0,0.0004136,30]
[381385262,1756174251449,-197.80930233,0.0004136,120]
[381385263,1756174251458,-151.0,0.00041369,7]
[381385264,1756174251468,-151.0,0.00041369,7]
[381385265,1756174251477,-151.0,0.00041369,7]
[381385266,1756174251487,-151.0,0.00041369,7]
[381385267,1756174251497,-1088.0,0.00041369,7]
[381385268,1756174251507,-201.29165994,0.00041369,7]
[381385269,1756174251516,-199.2690578,0.00041369,7]
[381385270,1756174251525,-151.0,0.00041369,7]
[381385271,1756174251536,-502.54200134,0.00041369,7]
[381385272,1756174251549,-151.0,0.00041369,7]
[381385273,1756174251558,-151.0,0.00041369,7]
[381385274,1756174251568,-151.0,0.00041369,7]
[381385275,1756174251579,-151.0,0.00041369,7]
[381385276,1756174251590,-480.0,0.00041369,30]
[381385277,1756174251600,-154.32300057,0.00041369,30]
[381385278,1756174251610,-480.0,0.00041369,30]
[381385279,1756174251621,-429.63888776,0.00041369,30]
[381385280,1756174251631,-480.0,0.00041369,30]
[381385281,1756174251641,-902.06,0.00041369,30]
[381385282,1756174251651,-480.0,0.00041369,30]
[381385283,1756174251660,-480.0,0.00041369,30]
[381385284,1756174251670,-150.69068895,0.00041369,30]
[381385285,1756174251679,-463.29606889,0.00041369,30]
[381385286,1756174251689,-1496.05,0.00041369,30]
[381385287,1756174251698,-480.0,0.00041369,30]
[381385288,1756174251708,-480.0,0.00041369,30]
[381385289,1756174251717,-480.0,0.00041369,30]
[381385290,1756174251727,-500.0,0.00041369,30]
[381385291,1756174251736,-549.71,0.00041369,30]
[381385292,1756174251745,-548.83,0.00041369,30]
[381385293,1756174251755,-480.0,0.00041369,30]
[381385294,1756174251765,-2198.74,0.00041369,30]
[381385295,1756174251775,-1052.22,0.00041369,30]
[381385296,1756174251784,-480.0,0.00041369,30]
[381385297,1756174251794,-499.82,0.00041369,30]
[381385298,1756174251805,-480.0,0.00041369,30]
[381385299,1756174251815,-480.0,0.00041369,30]
[381385300,1756174251825,-480.0,0.00041369,30]
[381385301,1756174251834,-480.0,0.00041369,30]
[381385302,1756174251843,-679.64,0.00041369,30]
[381385303,1756174251853,-480.0,0.00041369,30]
[381385304,1756174251862,-722.29,0.00041369,30]
[381385305,1756174251872,-480.0,0.00041369,30]
[381385306,1756174251882,-480.0,0.00041369,30]
[381385307,1756174251892,-480.0,0.00041369,30]
[381385308,1756174251901,-494.56,0.00041369,30]
[381385309,1756174251911,-1046.78,0.00041369,30]
[381385310,1756174251920,-480.0,0.00041369,30]
[381385311,1756174251929,-480.0,0.00041369,30]
[381385312,1756174251939,-480.0,0.00041369,30]
[381385313,1756174251948,-480.0,0.00041369,30]
[381385314,1756174251958,-480.0,0.00041369,30]
[381385315,1756174251967,-185.03089609,0.00041369,30]
[381385316,1756174251977,-480.0,0.00041369,30]
[381385317,1756174251986,-480.0,0.00041369,30]
[381385318,1756174251995,-480.0,0.00041369,30]
[381385319,1756174252004,-480.0,0.00041369,30]
[381385320,1756174252013,-480.0,0.00041369,30]
[381385321,1756174252023,-480.0,0.00041369,30]
[381385322,1756174252032,-480.0,0.00041369,30]
[381385323,1756174252042,-480.0,0.00041369,30]
[381385324,1756174252051,-563.63528633,0.00041369,30]
[381385325,1756174252060,-480.0,0.00041369,30]
[381385326,1756174252069,-480.0,0.00041369,30]
[381385327,1756174252079,-736.14,0.00041369,30]
[381385328,1756174252088,-480.0,0.00041369,30]
[381385329,1756174252097,-480.0,0.00041369,30]
[381385330,1756174252106,-480.0,0.00041369,30]
[381385331,1756174252116,-480.0,0.00041369,30]
[381385332,1756174252125,-533.33,0.00041369,20]
[381385333,1756174252134,-480.0,0.00041369,30]
[381385334,1756174252144,-1312.16,0.00041369,30]
[381385335,1756174252153,-894.2,0.00041369,30]
[381385336,1756174252163,-480.0,0.00041369,30]
[381385337,1756174252173,-480.0,0.00041369,30]
[381385338,1756174252182,-480.0,0.00041369,30]
[381385339,1756174252191,-480.0,0.00041369,30]
[381385340,1756174252201,-480.0,0.00041369,30]
[381385341,1756174252210,-480.0,0.00041369,30]
[381385342,1756174252221,-480.0,0.00041369,30]
[381385343,1756174252230,-480.0,0.00041369,30]
[381385344,1756174252239,-480.0,0.00041369,30]
[381385345,1756174252248,-803.83,0.00041369,30]
[381385346,1756174252257,-480.0,0.00041369,30]
[381385347,1756174252266,-480.0,0.00041369,30]
[381385348,1756174252277,-480.0,0.00041369,30]
[381385349,1756174252286,-480.0,0.00041369,30]
[381385350,1756174252296,-480.0,0.00041369,30]
[381385351,1756174252305,-784.25,0.00041369,30]
[381385352,1756174252314,-556.15364157,0.00041369,30]
[381385353,1756174252324,-480.0,0.00041369,30]
[381385354,1756174252333,-216.55,0.00041369,30]
[381385355,1756174252343,-480.0,0.00041369,30]
[381385356,1756174252353,-779.67,0.00041369,30]
[381385357,1756174252363,-2178.64,0.00041369,30]
[381385358,1756174252373,-1757.82,0.00041369,30]
[381385359,1756174252383,-545.37,0.00041369,7]
[381385360,1756174252393,-613.86,0.00041369,30]
[381385361,1756174252403,-591.97,0.00041369,30]
[381385362,1756174252412,-480.0,0.00041369,30]
[381385363,1756174252422,-480.0,0.00041369,30]
[381385364,1756174252431,-772.68,0.00041369,30]
[381385365,1756174252441,-669.96,0.00041369,30]
[381385366,1756174252450,-480.0,0.00041369,30]
[381385367,1756174252459,-480.0,0.00041369,30]
[381385368,1756174252469,-480.0,0.00041369,30]
[381385369,1756174252478,-684.04,0.00041369,30]
[381385370,1756174252487,-480.0,0.00041369,30]
[381385371,1756174252497,-524.27525676,0.00041369,30]
[381385372,1756174252506,-480.0,0.00041369,30]
[381385373,1756174252515,-480.0,0.00041369,30]
[381385374,1756174252526,-480.0,0.00041369,30]
[381385375,1756174252536,-684.92,0.00041369,30]
[381385376,1756174252549,-579.14,0.00041369,30]
[381385377,1756174252558,-480.0,0.00041369,30]
[381385378,1756174252568,-480.0,0.00041369,30]
[381385379,1756174252579,-480.0,0.00041369,30]
[381385380,1756174252588,-519.6,0.00041369,30]
[381385381,1756174252597,-387.04128054,0.00041369,30]
[381385382,1756174252607,-480.0,0.00041369,30]
[381385383,1756174252622,-480.0,0.00041369,30]
[381385384,1756174252632,-1004.95,0.00041369,30]
[381385385,1756174252642,-480.0,0.00041369,30]
[381385386,1756174252652,-480.0,0.00041369,30]
[381385387,1756174252665,-480.0,0.00041369,30]
[381385388,1756174252677,-480.0,0.00041369,30]
[381385389,1756174252686,-480.0,0.00041369,5]
[381385390,1756174252695,-480.0,0.00041369,30]
[381385391,1756174252706,-500.0,0.00041369,120]
[381385392,1756174252715,-642.04,0.00041369,30]
[381385393,1756174252725,-480.0,0.00041369,30]
[381385394,1756174252735,-480.0,0.00041369,30]
[381385395,1756174252745,-774.93,0.00041369,30]
[381385396,1756174252755,-480.0,0.00041369,30]
[381385397,1756174252765,-480.0,0.00041369,30]
[381385398,1756174252775,-480.0,0.00041369,30]
[381385399,1756174252785,-481.64613471,0.00041369,30]
[381385400,1756174252795,-2173.52,0.00041369,30]
[381385401,1756174252804,-480.0,0.00041369,30]
[381385402,1756174252814,-480.0,0.00041369,30]
[381385403,1756174252824,-1521.49,0.00041369,30]
[381385404,1756174252833,-254.34342906,0.00041369,30]
[381385405,1756174252843,-691.48,0.00041369,30]
[381385406,1756174252853,-480.0,0.00041369,30]
[381385407,1756174252862,-1898.6,0.00041369,30]
[381385408,1756174252872,-480.0,0.00041369,30]
[381385409,1756174252882,-568.17,0.00041369,30]
[381385410,1756174252892,-485.84,0.00041369,30]
[381385411,1756174252902,-797.78,0.00041369,30]
[381385412,1756174252912,-480.0,0.00041369,30]
[381385413,1756174252922,-719.04,0.00041369,30]
[381385414,1756174252932,-501.14,0.00041369,30]
[381385415,1756174252941,-480.0,0.00041369,30]
[381385416,1756174252951,-480.0,0.00041369,30]
[381385417,1756174252961,-733.26,0.00041369,30]
[381385418,1756174252971,-480.0,0.00041369,30]
[381385419,1756174253040,-480.0,0.00041369,30]
[381385420,1756174253051,-628.8,0.00041369,30]
[381385421,1756174253060,-480.0,0.00041369,30]
[381385422,1756174253072,-513.98,0.00041369,30]
[381385423,1756174253083,-480.0,0.00041369,30]
[381385424,1756174253093,-480.0,0.00041369,30]
[381385425,1756174253104,-2868.57,0.00041369,30]
[381385426,1756174253113,-719.89,0.00041369,30]
[381385427,1756174253123,-514.14,0.00041369,30]
[381385428,1756174253132,-374.95003843,0.00041369,30]
[381385429,1756174253142,-480.0,0.00041369,30]
[381385430,1756174253152,-480.0,0.00041369,30]
[381385431,1756174253162,-480.0,0.00041369,30]
[381385432,1756174253172,-1716.47,0.00041369,30]
[381385433,1756174253182,-480.0,0.00041369,30]
[381385434,1756174253192,-480.0,0.00041369,30]
[381385435,1756174253201,-1559.68,0.00041369,30]
[381385436,1756174253211,-955.56,0.00041369,30]
[381385437,1756174253220,-480.0,0.00041369,30]
[381385438,1756174253232,-540.24,0.00041369,30]
[381385439,1756174253241,-480.0,0.00041369,30]
[381385440,1756174253251,-480.0,0.00041369,30]
[381385441,1756174253260,-480.0,0.00041369,30]
[381385442,1756174253271,-480.0,0.00041369,30]
[381385443,1756174253280,-506.7,0.00041369,30]
[381385444,1756174253290,-480.0,0.00041369,30]
[381385445,1756174253299,-480.0,0.00041369,30]
[381385446,1756174253309,-480.0,0.00041369,30]
[381385447,1756174253319,-745.65,0.00041369,30]
[381385448,1756174253330,-378.71207186,0.00041369,30]
[381385449,1756174253340,-480.0,0.00041369,30]
[381385450,1756174253349,-2104.85,0.00041369,30]
[381385451,1756174253359,-533.96,0.00041369,30]
[381385452,1756174253369,-438.40678662,0.00041369,30]
[381385453,1756174253378,-621.52,0.00041369,30]
[381385454,1756174253389,-705.64,0.00041369,30]
[381385455,1756174253398,-2491.9,0.00041369,30]
[381385456,1756174253408,-659.53,0.00041369,14]
[381385457,1756174253417,-480.0,0.00041369,30]
[381385458,1756174253426,-930.66,0.00041369,30]
[381385459,1756174253436,-787.91,0.00041369,30]
[381385460,1756174253445,-480.21657137,0.00041369,30]
[381385461,1756174253454,-480.0,0.00041369,30]
[381385462,1756174253464,-970.79,0.00041369,30]
[381385463,1756174253473,-983.95,0.00041369,30]
[381385464,1756174253482,-661.55,0.00041369,30]
[381385465,1756174253491,-480.0,0.00041369,30]
[381385466,1756174253501,-1122.86,0.00041369,30]
[381385467,1756174253510,-825.05,0.00041369,30]
[381385468,1756174253520,-1587.66,0.00041369,30]
[381385469,1756174253530,-683.37,0.00041369,30]
[381385470,1756174253548,-878.11,0.00041369,30]
[381385471,1756174253560,-480.0,0.00041369,30]
[381385472,1756174253570,-480.0,0.00041369,30]
[381385473,1756174253580,-547.32,0.00041369,30]
[381385474,1756174253590,-885.79,0.00041369,30]
[381385475,1756174253599,-480.0,0.00041369,30]
[381385476,1756174253609,-1000.0,0.00041369,30]
[381385477,1756174253618,-572.94,0.00041369,30]
[381385478,1756174253627,-590.82,0.00041369,30]
[381385479,1756174253636,-938.8,0.00041369,30]
[381385480,1756174253650,-823.44,0.00041369,30]
[381385481,1756174253659,-480.0,0.00041369,30]
[381385482,1756174253668,-271.84029187,0.00041369,30]
[381385483,1756174253677,-480.0,0.00041369,30]
[381385484,1756174253686,-589.53,0.00041369,30]
[381385485,1756174253695,-480.0,0.00041369,30]
[381385486,1756174253705,-480.0,0.00041369,30]
[381385487,1756174253714,-480.0,0.00041369,30]
[381385488,1756174253723,-3150.9,0.00041369,30]
[381385489,1756174253733,-3224.11,0.00041369,30]
[381385490,1756174253742,-480.0,0.00041369,30]
[381385491,1756174253752,-735.85,0.00041369,30]
[381385492,1756174253762,-480.0,0.00041369,30]
[381385493,1756174253772,-480.0,0.00041369,30]
[381385494,1756174253781,-480.0,0.00041369,30]
[381385495,1756174253791,-480.0,0.00041369,30]
[381385496,1756174253800,-480.0,0.00041369,30]
[381385497,1756174253810,-480.0,0.00041369,30]
[381385498,1756174253819,-515.93,0.00041369,30]
[381385499,1756174253831,-480.0,0.00041369,30]
[381385500,1756174253840,-578.95,0.00041369,30]
[381385501,1756174253850,-480.0,0.00041369,30]
[381385502,1756174253860,-1319.56,0.00041369,30]
[381385503,1756174253869,-968.3,0.00041369,30]
[381385504,1756174253880,-480.0,0.00041369,30]
[381385505,1756174253891,-480.0,0.00041369,30]
[381385506,1756174253900,-480.0,0.00041369,30]
[381385507,1756174253909,-480.0,0.00041369,30]
[381385508,1756174253919,-666.78,0.00041369,30]
[381385509,1756174253927,-625.84,0.00041369,30]
[381385510,1756174253937,-536.35,0.00041369,30]
[381385511,1756174253947,-480.0,0.00041369,30]
[381385512,1756174253956,-1357.56,0.00041369,30]
[381385513,1756174253966,-480.0,0.00041369,30]
[381385514,1756174253975,-946.95,0.00041369,30]
[381385515,1756174253985,-480.0,0.00041369,30]
[381385516,1756174253995,-616.06,0.00041369,30]
[381385517,1756174254005,-992.09,0.00041369,30]
[381385518,1756174254014,-871.12,0.00041369,30]
[381385519,1756174254023,-480.0,0.00041369,30]
[381385520,1756174254032,-852.3,0.00041369,30]
[381385521,1756174254042,-483.42,0.00041369,30]
[381385522,1756174254052,-480.0,0.00041369,30]
[381385523,1756174254062,-778.35,0.00041369,30]
[381385524,1756174254072,-481.02497483,0.00041369,30]
[381385525,1756174254082,-480.0,0.00041369,30]
[381385526,1756174254093,-897.44,0.00041369,30]
[381385527,1756174254103,-4076.35,0.00041369,30]
[381385528,1756174254112,-480.0,0.00041369,30]
[381385529,1756174254122,-668.61,0.00041369,30]
[381385530,1756174254131,-480.0,0.00041369,30]
[381385531,1756174254143,-480.0,0.00041369,30]
[381385532,1756174254153,-480.0,0.00041369,30]
[381385533,1756174254162,-1157.16,0.00041369,30]
[381385534,1756174254171,-480.0,0.00041369,30]
[381385535,1756174254181,-1759.65,0.00041369,30]
[381385536,1756174254190,-520.17,0.00041369,30]
[381385537,1756174254199,-1077.19,0.00041369,30]
[381385538,1756174254209,-772.6,0.00041369,30]
[381385539,1756174254218,-1499.22,0.00041369,30]
[381385540,1756174254227,-530.32,0.00041369,30]
[381385541,1756174254236,-480.0,0.00041369,30]
[381385542,1756174254246,-519.71925191,0.00041369,30]
[381385543,1756174254255,-1843.62,0.00041369,30]
[381385544,1756174254264,-480.0,0.00041369,30]
[381385545,1756174254274,-480.0,0.00041369,30]
[381385546,1756174254284,-1093.47,0.00041369,30]
[381385547,1756174254293,-536.15,0.00041369,30]
[381385548,1756174254303,-1121.11,0.00041369,30]
[381385549,1756174254312,-480.0,0.00041369,30]
[381385550,1756174254321,-583.23,0.00041369,30]
[381385551,1756174254331,-1792.9,0.00041369,30]
[381385552,1756174254340,-480.0,0.00041369,30]
[381385553,1756174254350,-613.29,0.00041369,30]
[381385554,1756174254359,-167.43058998,0.00041369,30]
[381385555,1756174254368,-480.0,0.00041369,30]
[381385556,1756174254378,-480.0,0.00041369,30]
[381385557,1756174254387,-480.0,0.00041369,30]
[381385558,1756174254399,-588.24,0.00041369,30]
[381385559,1756174254408,-480.0,0.00041369,30]
[381385560,1756174254417,-604.06,0.00041369,30]
[381385561,1756174254427,-1392.95,0.00041369,30]
[381385562,1756174254436,-480.0,0.00041369,30]
[381385563,1756174254445,-2882.03,0.00041369,30]
[381385564,1756174254455,-584.16,0.00041369,30]
[381385565,1756174254464,-480.0,0.00041369,30]
[381385566,1756174254473,-2181.84,0.00041369,30]
[381385567,1756174254483,-480.0,0.00041369,30]
[381385568,1756174254493,-927.5,0.00041369,30]
[381385569,1756174254503,-1830.97,0.00041369,30]
[381385570,1756174254513,-670.88,0.00041369,30]
[381385571,1756174254523,-480.0,0.00041369,30]
[381385572,1756174254534,-480.0,0.00041369,30]
[381385573,1756174254544,-480.0,0.00041369,30]
[381385574,1756174254554,-480.0,0.00041369,30]
[381385575,1756174254564,-810.81,0.00041369,30]
[381385576,1756174254573,-1822.19,0.00041369,30]
[381385577,1756174254587,-667.78,0.00041369,30]
[381385578,1756174254597,-480.0,0.00041369,30]
[381385579,1756174254607,-901.13,0.00041369,30]
[381385580,1756174254622,-480.0,0.00041369,30]
[381385581,1756174254632,-480.0,0.00041369,30]
[381385582,1756174254643,-480.0,0.00041369,30]
[381385583,1756174254653,-825.06,0.00041369,30]
[381385584,1756174254663,-546.58,0.00041369,30]
[381385585,1756174254672,-1161.8,0.00041369,30]
[381385586,1756174254681,-480.0,0.00041369,30]
[381385587,1756174254691,-480.0,0.00041369,30]
[381385588,1756174254702,-742.31,0.00041369,30]
[381385589,1756174254713,-480.0,0.00041369,30]
[381385590,1756174254723,-1363.65,0.00041369,30]
[381385591,1756174254732,-480.0,0.00041369,30]
[381385592,1756174254742,-480.0,0.00041369,30]
[381385593,1756174254752,-620.67,0.00041369,30]
[381385594,1756174254762,-480.0,0.00041369,30]
[381385595,1756174254771,-480.0,0.00041369,30]
[381385596,1756174254781,-1385.47,0.00041369,30]
[381385597,1756174254791,-480.0,0.00041369,30]
[381385598,1756174254801,-1431.58,0.00041369,30]
[381385599,1756174254812,-480.0,0.00041369,30]
[381385600,1756174254822,-1007.67,0.00041369,30]
[381385601,1756174254832,-495.17,0.00041369,30]
[381385602,1756174254841,-971.21,0.00041369,30]
[381385603,1756174254852,-737.13,0.00041369,30]
[381385604,1756174254862,-480.0,0.00041369,30]
[381385605,1756174254871,-480.0,0.00041369,30]
[381385606,1756174254882,-172.52415938,0.00041369,30]
[381385607,1756174254892,-984.47,0.00041369,30]
[381385608,1756174254902,-699.5,0.00041369,30]
[381385609,1756174254911,-480.0,0.00041369,30]
[381385610,1756174254921,-709.14,0.00041369,30]
[381385611,1756174254930,-1025.3,0.00041369,30]
[381385612,1756174254940,-241.83877976,0.00041369,30]
[381385613,1756174254950,-480.0,0.00041369,30]
[381385614,1756174254959,-676.6,0.00041369,30]
[381385615,1756174254970,-480.0,0.00041369,30]
[381385616,1756174254979,-480.0,0.00041369,30]
[381385617,1756174254990,-480.0,0.00041369,30]
[381385618,1756174255000,-611.68,0.00041369,30]
[381385619,1756174255009,-2699.24,0.00041369,30]
[381385620,1756174255019,-691.16,0.00041369,30]
[381385621,1756174255029,-1530.65,0.00041369,30]
[381385622,1756174255038,-962.23,0.00041369,30]
[381385623,1756174255049,-539.15,0.00041369,30]
[381385624,1756174255058,-506.99,0.00041369,30]
[381385625,1756174255068,-1626.22,0.00041369,30]
[381385626,1756174255078,-1337.83,0.00041369,30]
[381385627,1756174255088,-480.0,0.00041369,30]
[381385628,1756174255098,-370.21736732,0.00041369,30]
[381385629,1756174255107,-480.0,0.00041369,30]
[381385630,1756174255117,-480.0,0.00041369,30]
[381385631,1756174255127,-1067.19,0.00041369,30]
[381385632,1756174255136,-522.92,0.00041369,30]
[381385633,1756174255147,-1070.55,0.00041369,30]
[381385634,1756174255157,-480.0,0.00041369,30]
[381385635,1756174255167,-480.0,0.00041369,30]
[381385636,1756174255176,-480.0,0.00041369,30]
[381385637,1756174255186,-843.23,0.00041369,30]
[381385638,1756174255196,-480.0,0.00041369,30]
[381385639,1756174255206,-1230.82,0.00041369,30]
[381385640,1756174255217,-714.20747451,0.00041369,30]
[381385641,1756174255575,-48.03252549,0.00041369,30]
[381385642,1756174255586,-480.0,0.00041369,30]
[381385643,1756174255596,-1587.37,0.00041369,30]
[381385644,1756174255606,-7719.13,0.00041369,30]
[381385645,1756174255619,-1980.51,0.00041369,30]
[381385646,1756174255630,-480.0,0.00041369,30]
[381385647,1756174255642,-480.0,0.00041369,30]
[381385648,1756174255652,-480.0,0.00041369,30]
[381385649,1756174255662,-1159.62,0.00041369,30]
[381385650,1756174255671,-713.15,0.00041369,30]
[381385651,1756174255681,-2620.03,0.00041369,30]
[381385652,1756174255690,-441.94659042,0.00041369,30]
[381385653,1756174255700,-480.0,0.00041369,30]
[381385654,1756174255711,-3158.49,0.00041369,30]
[381385655,1756174255720,-274.97331678,0.00041369,30]
[381385656,1756174255730,-554.91,0.00041369,30]
[381385657,1756174255741,-480.0,0.00041369,30]
[381385658,1756174255751,-1240.84,0.00041369,30]
[381385659,1756174255760,-2104.63,0.00041369,30]
[381385660,1756174255770,-888.02,0.00041369,30]
[381385661,1756174255780,-480.0,0.00041369,30]
[381385662,1756174255790,-1523.74,0.00041369,30]
[381385663,1756174255800,-480.0,0.00041369,30]
[381385664,1756174255810,-3065.89,0.00041369,30]
[381385665,1756174255820,-480.0,0.00041369,30]
[381385666,1756174255830,-480.0,0.00041369,30]
[381385667,1756174255840,-1840.17,0.00041369,30]
[381385668,1756174255850,-480.0,0.00041369,30]
[381385669,1756174255861,-480.0,0.00041369,30]
[381385670,1756174255871,-480.0,0.00041369,30]
[381385671,1756174255880,-998.33,0.00041369,30]
[381385672,1756174255890,-480.0,0.00041369,7]
[381385673,1756174255900,-480.0,0.00041369,30]
[381385674,1756174255910,-480.0,0.00041369,30]
[381385675,1756174255920,-2132.91,0.00041369,30]
[381385676,1756174255930,-480.0,0.00041369,7]
[381385677,1756174255940,-308.83937878,0.00041369,30]
[381385678,1756174255949,-639.74,0.00041369,30]
[381385679,1756174255959,-480.0,0.00041369,30]
[381385680,1756174255968,-480.0,0.00041369,30]
[381385681,1756174255978,-480.0,0.00041369,30]
[381385682,1756174255988,-1282.45,0.00041369,30]
[381385683,1756174255998,-480.0,0.00041369,30]
[381385684,1756174256008,-480.0,0.00041369,30]
[381385685,1756174256018,-2504.56,0.00041369,30]
[381385686,1756174256027,-307.27625591,0.00041369,30]
[381385687,1756174256037,-480.0,0.00041369,30]
[381385688,1756174256047,-480.0,0.00041369,30]
[381385689,1756174256056,-480.0,0.00041369,30]
[381385690,1756174256067,-1510.68,0.00041369,30]
[381385691,1756174256076,-480.0,0.00041369,30]
[381385692,1756174256086,-480.0,0.00041369,30]
[381385693,1756174256096,-480.0,0.00041369,30]
[381385694,1756174256106,-521.02,0.00041369,30]
[381385695,1756174256116,-480.0,0.00041369,30]
[381385696,1756174256126,-480.0,0.00041369,30]
[381385697,1756174256135,-480.0,0.00041369,30]
[381385698,1756174256148,-157.3920778,0.00041369,30]
[381385699,1756174256159,-480.0,0.00041369,30]
[381385700,1756174256169,-653.39,0.00041369,30]
[381385701,1756174256179,-1167.62,0.00041369,30]